[Event "XXII Obert Internacional d'Escacs Sant Marti 2022"]
[Site "Barcelona, Spain"]
[Date "2022.07.19"]
[Round "7.1"]
[White "Aronyak, Ghosh"]
[Black "Berdayes Ason, Dylan Isidro"]
[Result "1/2-1/2"]
[TimeControl "1.30 fb 30"]
[WhiteElo "2486"]
[BlackElo "2480"]

1. c4 {[%clk 01:30:34]} {[%emt 00:00:25]} e5 {[%clk 01:30:58]} {[%emt
00:00:02]} 2. Nc3 {[%clk 01:30:18]} {[%emt 00:00:47]} Nf6 {[%clk 01:31:25]}
{[%emt 00:00:02]} 3. Nf3 {[%clk 01:30:32]} {[%emt 00:00:15]} Nc6 {[%clk
01:31:53]} {[%emt 00:00:03]} 4. g3 {[%clk 01:30:51]} {[%emt 00:00:11]} d5
{[%clk 01:32:08]} {[%emt 00:00:15]} 5. cxd5 {[%clk 01:31:12]} {[%emt 00:00:09]}
Nxd5 {[%clk 01:32:35]} {[%emt 00:00:02]} 6. Bg2 {[%clk 01:31:31]} {[%emt
00:00:11]} Bc5 {[%clk 01:33:01]} {[%emt 00:00:05]} 7. O-O {[%clk 01:27:58]}
{[%emt 00:04:04]} O-O {[%clk 01:33:28]} {[%emt 00:00:03]} 8. d3 {[%clk
01:24:47]} {[%emt 00:03:41]} h6 {[%clk 01:33:55]} {[%emt 00:00:03]} 9. Bd2
{[%clk 01:23:16]} {[%emt 00:02:00]} Nf6 {[%clk 01:34:21]} {[%emt 00:00:04]} 10.
Rc1 {[%clk 01:23:12]} {[%emt 00:00:34]} Qe7 {[%clk 01:31:43]} {[%emt 00:03:08]}
1/2-1/2

[Event "XXII Obert Internacional d'Escacs Sant Marti 2022"]
[Site "Barcelona, Spain"]
[Date "2022.07.19"]
[Round "7.3"]
[White "Barbero Sendic, Alejandro"]
[Black "Asis Gargatagli, Hipolito"]
[Result "1/2-1/2"]
[TimeControl "1.30 fb 30"]
[WhiteElo "2326"]
[BlackElo "2514"]

1. e4 {[%clk 01:30:51]} {[%emt 00:00:07]} e5 {[%clk 01:30:51]} {[%emt
00:00:10]} 2. Nf3 {[%clk 01:31:08]} {[%emt 00:00:13]} Nc6 {[%clk 01:31:15]}
{[%emt 00:00:06]} 3. Nc3 {[%clk 01:31:22]} {[%emt 00:00:16]} Nf6 {[%clk
01:31:25]} {[%emt 00:00:20]} 4. d4 {[%clk 01:31:33]} {[%emt 00:00:19]} exd4
{[%clk 01:31:28]} {[%emt 00:00:28]} 5. Nxd4 {[%clk 01:31:45]} {[%emt 00:00:18]}
Bb4 {[%clk 01:31:47]} {[%emt 00:00:10]} 6. Nxc6 {[%clk 01:31:52]} {[%emt
00:00:23]} bxc6 {[%clk 01:32:04]} {[%emt 00:00:13]} 7. Bd3 {[%clk 01:32:08]}
{[%emt 00:00:13]} O-O {[%clk 01:32:22]} {[%emt 00:00:12]} 8. O-O {[%clk
01:32:27]} {[%emt 00:00:12]} d5 {[%clk 01:32:47]} {[%emt 00:00:06]} 9. exd5
{[%clk 01:32:37]} {[%emt 00:00:19]} cxd5 {[%clk 01:33:12]} {[%emt 00:00:06]} 10.
Bg5 {[%clk 01:32:50]} {[%emt 00:00:16]} c6 {[%clk 01:33:30]} {[%emt 00:00:12]}
11. Qf3 {[%clk 01:33:09]} {[%emt 00:00:10]} h6 {[%clk 01:33:52]} {[%emt
00:00:08]} 12. Bxf6 {[%clk 01:33:32]} {[%emt 00:00:08]} Qxf6 {[%clk 01:34:15]}
{[%emt 00:00:07]} 1/2-1/2

[Event "XXII Obert Internacional d'Escacs Sant Marti 2022"]
[Site "Barcelona, Spain"]
[Date "2022.07.19"]
[Round "7.4"]
[White "Roshka, Yevgeniy"]
[Black "Macak, Stefan"]
[Result "1/2-1/2"]
[TimeControl "1.30 fb 30"]
[WhiteElo "2497"]
[BlackElo "2363"]

1. e4 {[%clk 01:30:58]} {[%emt 00:00:01]} e6 {[%clk 01:27:53]} {[%emt
00:03:08]} 2. d3 {[%clk 01:31:23]} {[%emt 00:00:05]} d5 {[%clk 01:28:03]}
{[%emt 00:00:19]} 3. Nd2 {[%clk 01:31:52]} {[%emt 00:00:02]} Nf6 {[%clk
01:28:08]} {[%emt 00:00:25]} 4. Ngf3 {[%clk 01:32:09]} {[%emt 00:00:13]} Nc6
{[%clk 01:26:59]} {[%emt 00:01:38]} 5. g3 {[%clk 01:31:20]} {[%emt 00:01:19]}
dxe4 {[%clk 01:26:48]} {[%emt 00:00:41]} 6. dxe4 {[%clk 01:31:48]} {[%emt
00:00:02]} e5 {[%clk 01:27:01]} {[%emt 00:00:17]} 7. Bb5 {[%clk 01:27:21]}
{[%emt 00:04:57]} Bd6 {[%clk 01:23:59]} {[%emt 00:03:32]} 8. Bxc6+ {[%clk
01:25:53]} {[%emt 00:01:59]} bxc6 {[%clk 01:24:22]} {[%emt 00:00:07]} 9. Qe2
{[%clk 01:25:40]} {[%emt 00:00:42]} a5 {[%clk 01:19:36]} {[%emt 00:05:16]} 10.
Nc4 {[%clk 01:17:24]} {[%emt 00:08:46]} Ba6 {[%clk 01:15:54]} {[%emt 00:04:13]}
11. b3 {[%clk 00:43:33]} {[%emt 00:34:21]} O-O {[%clk 01:10:21]} {[%emt
00:06:03]} 12. Bb2 {[%clk 00:40:58]} {[%emt 00:03:05]} Nd7 {[%clk 01:03:15]}
{[%emt 00:07:35]} 13. O-O {[%clk 00:33:45]} {[%emt 00:07:43]} Qe7 {[%clk
00:58:54]} {[%emt 00:04:51]} 14. Nfd2 {[%clk 00:29:38]} {[%emt 00:04:37]} Nb6
{[%clk 00:50:11]} {[%emt 00:09:14]} 15. f4 {[%clk 00:27:07]} {[%emt 00:03:01]}
exf4 {[%clk 00:37:46]} {[%emt 00:12:54]} 16. gxf4 {[%clk 00:27:35]} {[%emt
00:00:02]} f6 {[%clk 00:37:54]} {[%emt 00:00:22]} 17. e5 {[%clk 00:20:57]}
{[%emt 00:07:09]} Bb4 {[%clk 00:28:18]} {[%emt 00:10:06]} 18. Rfd1 {[%clk
00:15:38]} {[%emt 00:05:50]} Bxd2 {[%clk 00:24:30]} {[%emt 00:04:17]} 19. Rxd2
{[%clk 00:16:01]} {[%emt 00:00:08]} Bxc4 {[%clk 00:14:48]} {[%emt 00:10:12]} 20.
bxc4 {[%clk 00:16:30]} Qc5+ {[%clk 00:11:50]} {[%emt 00:03:27]} 21. Bd4 {[%clk
00:16:59]} {[%emt 00:00:01]} Qxc4 {[%clk 00:11:07]} {[%emt 00:01:14]} 22. exf6
{[%clk 00:16:56]} {[%emt 00:00:32]} Qxe2 {[%clk 00:09:57]} {[%emt 00:01:41]} 23.
Rxe2 {[%clk 00:17:25]} gxf6 {[%clk 00:08:52]} {[%emt 00:01:35]} 24. Re6 {[%clk
00:17:54]} {[%emt 00:00:01]} Nd5 {[%clk 00:08:21]} {[%emt 00:01:00]} 25. Rf1
{[%clk 00:17:12]} {[%emt 00:01:12]} Rad8 {[%clk 00:07:12]} {[%emt 00:01:39]} 26.
f5 {[%clk 00:13:11]} {[%emt 00:04:32]} Rd6 {[%clk 00:05:52]} {[%emt 00:01:49]}
27. c4 {[%clk 00:12:27]} {[%emt 00:01:14]} Nb4 {[%clk 00:03:11]} {[%emt
00:03:10]} 28. Bc5 {[%clk 00:12:39]} {[%emt 00:00:19]} Rxe6 {[%clk 00:03:07]}
{[%emt 00:00:35]} 29. fxe6 {[%clk 00:13:07]} {[%emt 00:00:02]} Re8 {[%clk
00:02:46]} {[%emt 00:00:50]} 30. Rxf6 {[%clk 00:13:35]} {[%emt 00:00:02]} Nd3
{[%clk 00:02:41]} {[%emt 00:00:36]} 31. Bd4 {[%clk 00:13:31]} {[%emt 00:00:34]}
Rf8 {[%clk 00:01:59]} {[%emt 00:01:12]} 32. e7 {[%clk 00:12:25]} {[%emt
00:01:36]} Re8 {[%clk 00:01:59]} {[%emt 00:00:30]} 33. Rf3 {[%clk 00:12:53]}
{[%emt 00:00:01]} Ne1 {[%clk 00:00:35]} {[%emt 00:01:54]} 34. Rg3+ {[%clk
00:13:12]} {[%emt 00:00:11]} Kf7 {[%clk 00:01:04]} {[%emt 00:00:02]} 35. Bc5
{[%clk 00:13:41]} {[%emt 00:00:01]} Nc2 {[%clk 00:01:07]} {[%emt 00:04:04]} 36.
Rh3 {[%clk 00:13:05]} {[%emt 00:03:50]} Nb4 {[%clk 00:01:06]} {[%emt 00:00:30]}
37. Rxh7+ {[%clk 00:11:12]} {[%emt 00:02:23]} Ke6 {[%clk 00:01:35]} {[%emt
00:00:02]} 38. Rh5 {[%clk 00:10:39]} {[%emt 00:01:03]} Nd3 {[%clk 00:01:10]}
{[%emt 00:00:55]} 39. Ba3 {[%clk 00:10:59]} {[%emt 00:00:10]} Ne5 {[%clk
00:01:06]} {[%emt 00:00:34]} 40. Rh6+ {[%clk 00:08:52]} {[%emt 00:02:37]} Kd7
{[%clk 00:01:22]} {[%emt 00:00:14]} 41. Bb2 {[%clk 00:09:08]} {[%emt 00:00:14]}
Nxc4 {[%emt 00:01:18]} 42. Bf6 {[%clk 00:09:36]} Nb6 {[%clk 00:00:33]} {[%emt
00:00:32]} 43. Bg5 {[%clk 00:08:28]} {[%emt 00:01:39]} Nc8 {[%clk 00:00:33]}
{[%emt 00:00:30]} 44. Kf2 {[%clk 00:08:35]} {[%emt 00:00:23]} Nd6 {[%clk
00:00:41]} {[%emt 00:00:22]} 45. h4 {[%clk 00:07:31]} {[%emt 00:01:34]} Ne4+
{[%clk 00:00:44]} {[%emt 00:00:27]} 46. Kf3 {[%clk 00:07:56]} {[%emt 00:00:05]}
Nxg5+ {[%clk 00:01:00]} {[%emt 00:00:14]} 47. hxg5 {[%clk 00:08:54]} Rxe7
{[%clk 00:01:17]} {[%emt 00:00:43]} 48. Rf6 {[%clk 00:07:00]} {[%emt 00:02:24]}
Re1 {[%clk 00:01:13]} {[%emt 00:00:34]} 49. Kf2 {[%clk 00:06:03]} {[%emt
00:01:26]} Ra1 {[%clk 00:00:33]} {[%emt 00:01:11]} 50. g6 {[%clk 00:06:13]}
{[%emt 00:00:21]} Rxa2+ {[%clk 00:00:43]} {[%emt 00:00:20]} 51. Kg3 {[%clk
00:05:00]} {[%emt 00:01:41]} Ra1 {[%clk 00:00:53]} {[%emt 00:00:21]} 52. Kh2
{[%clk 00:04:05]} {[%emt 00:01:25]} Ra2+ {[%clk 00:01:14]} {[%emt 00:00:10]} 53.
Kh3 {[%clk 00:04:30]} {[%emt 00:00:04]} Ra1 {[%clk 00:01:01]} {[%emt 00:00:43]}
54. Kg2 {[%clk 00:02:46]} {[%emt 00:02:13]} Ra2+ {[%clk 00:01:30]} {[%emt
00:00:02]} 55. Kf3 {[%clk 00:03:09]} {[%emt 00:00:07]} Ra1 {[%clk 00:01:21]}
{[%emt 00:00:39]} 56. Kf2 {[%clk 00:02:20]} {[%emt 00:01:19]} Ra2+ {[%clk
00:01:39]} {[%emt 00:00:12]} 57. Kg3 {[%clk 00:02:30]} {[%emt 00:00:20]} Ra1
{[%clk 00:01:39]} {[%emt 00:00:30]} 58. Kg2 {[%clk 00:01:54]} {[%emt 00:01:05]}
Ra2+ {[%clk 00:02:06]} {[%emt 00:00:04]} 59. Kg3 {[%clk 00:02:21]} {[%emt
00:00:04]} 1/2-1/2

[Event "XXII Obert Internacional d'Escacs Sant Marti 2022"]
[Site "Barcelona, Spain"]
[Date "2022.07.19"]
[Round "7.5"]
[White "Pena Gomez, Manuel"]
[Black "Deodhar, Vrushali Umesh"]
[Result "1-0"]
[TimeControl "1.30 fb 30"]
[WhiteElo "2492"]
[BlackElo "1984"]

1. g3 {[%clk 01:28:22]} {[%emt 00:02:38]} d5 {[%clk 01:30:25]} {[%emt
00:00:35]} 2. Bg2 {[%clk 01:28:44]} {[%emt 00:00:08]} e5 {[%clk 01:30:13]}
{[%emt 00:00:43]} 3. c4 {[%clk 01:29:08]} {[%emt 00:00:06]} Nf6 {[%clk
01:30:34]} {[%emt 00:00:09]} 4. cxd5 {[%clk 01:29:25]} {[%emt 00:00:13]} Nxd5
{[%clk 01:31:01]} {[%emt 00:00:02]} 5. Nf3 {[%clk 01:29:39]} {[%emt 00:00:17]}
Nc6 {[%clk 01:31:23]} {[%emt 00:00:08]} 6. O-O {[%clk 01:29:57]} {[%emt
00:00:12]} Be7 {[%clk 01:29:23]} {[%emt 00:02:30]} 7. Nc3 {[%clk 01:25:50]}
{[%emt 00:04:37]} Nb6 {[%clk 01:29:41]} {[%emt 00:00:12]} 8. d3 {[%clk
01:26:13]} {[%emt 00:00:06]} O-O {[%clk 01:30:06]} {[%emt 00:00:06]} 9. Bd2
{[%clk 01:24:55]} {[%emt 00:01:48]} f5 {[%clk 01:27:57]} {[%emt 00:02:38]} 10.
b4 {[%clk 01:22:02]} {[%emt 00:03:23]} Bf6 {[%clk 01:28:01]} {[%emt 00:00:26]}
11. b5 {[%clk 01:12:01]} {[%emt 00:10:31]} Nd4 {[%clk 01:16:14]} {[%emt
00:12:17]} 12. Ne1 {[%clk 01:09:59]} {[%emt 00:02:33]} a6 {[%clk 01:12:24]}
{[%emt 00:04:20]} 13. bxa6 {[%clk 01:02:42]} {[%emt 00:07:47]} Rxa6 {[%clk
01:12:52]} {[%emt 00:00:02]} 14. a4 {[%clk 01:02:58]} {[%emt 00:00:13]} c6
{[%clk 01:09:17]} {[%emt 00:04:05]} 15. a5 {[%clk 00:52:32]} {[%emt 00:10:56]}
Nd5 {[%clk 01:06:54]} {[%emt 00:02:54]} 16. Na4 {[%clk 00:48:01]} {[%emt
00:05:01]} Qe7 {[%clk 01:01:58]} {[%emt 00:05:26]} 17. e3 {[%clk 00:43:29]}
{[%emt 00:05:02]} Nb5 {[%clk 00:58:23]} {[%emt 00:04:04]} 18. Bxd5+ {[%clk
00:40:35]} {[%emt 00:03:24]} cxd5 {[%clk 00:58:50]} {[%emt 00:00:03]} 19. Qb3
{[%clk 00:40:58]} {[%emt 00:00:07]} Nd6 {[%clk 00:57:40]} {[%emt 00:01:40]} 20.
Nc5 {[%clk 00:41:05]} {[%emt 00:00:23]} Ra7 {[%clk 00:56:08]} {[%emt 00:02:02]}
21. Qxd5+ {[%clk 00:38:50]} {[%emt 00:02:45]} Kh8 {[%clk 00:56:36]} 22. Bb4
{[%clk 00:38:47]} {[%emt 00:00:34]} Rd8 {[%clk 00:56:26]} 23. Rc1 {[%clk
00:38:41]} {[%emt 00:01:17]} Qe8 {[%clk 00:54:25]} 24. Qb3 {[%clk 00:32:11]}
{[%emt 00:09:30]} f4 {[%clk 00:52:19]} 25. exf4 {[%clk 00:30:22]} {[%emt
00:04:55]} exf4 {[%clk 00:51:49]} 26. Ng2 {[%clk 00:30:28]} {[%emt 00:01:24]}
fxg3 {[%clk 00:46:29]} 27. hxg3 {[%clk 00:30:35]} {[%emt 00:06:13]} Nf5 {[%clk
00:46:34]} 28. Rfe1 {[%clk 00:29:29]} {[%emt 00:02:01]} Qh5 {[%clk 00:45:44]}
29. Nf4 {[%clk 00:27:31]} {[%emt 00:03:49]} Qh6 {[%clk 00:41:14]} 30. Nce6
{[%clk 00:22:56]} {[%emt 00:10:04]} Rg8 {[%clk 00:36:38]} 31. Ng5 {[%clk
00:22:04]} {[%emt 00:06:29]} 1-0

[Event "XXII Obert Internacional d'Escacs Sant Marti 2022"]
[Site "Barcelona, Spain"]
[Date "2022.07.19"]
[Round "7.6"]
[White "Perpinya Rofes, Lluis Maria"]
[Black "Valenzuela Gomez, Fernando"]
[Result "0-1"]
[TimeControl "1.30 fb 30"]
[WhiteElo "2297"]
[BlackElo "2373"]

1. e4 {[%clk 01:30:57]} {[%emt 00:00:02]} c5 {[%clk 01:23:39]} {[%emt
00:07:22]} 2. Nf3 {[%clk 01:30:43]} {[%emt 00:00:43]} d6 {[%clk 01:23:50]}
{[%emt 00:00:20]} 3. d4 {[%clk 01:31:06]} {[%emt 00:00:06]} cxd4 {[%clk
01:24:14]} {[%emt 00:00:07]} 4. Nxd4 {[%clk 01:31:22]} {[%emt 00:00:14]} Nf6
{[%clk 01:24:33]} {[%emt 00:00:10]} 5. Nc3 {[%clk 01:31:44]} {[%emt 00:00:08]}
Nc6 {[%clk 01:24:55]} {[%emt 00:00:09]} 6. Bg5 {[%clk 01:26:56]} {[%emt
00:05:17]} e6 {[%clk 01:23:51]} {[%emt 00:01:34]} 7. Qd3 {[%clk 01:26:20]}
{[%emt 00:01:06]} Bd7 {[%clk 01:24:05]} {[%emt 00:00:17]} 8. O-O-O {[%clk
01:25:51]} {[%emt 00:00:57]} a6 {[%clk 01:24:16]} {[%emt 00:00:20]} 9. Be2
{[%clk 01:23:53]} {[%emt 00:02:28]} h6 {[%clk 01:24:14]} {[%emt 00:00:33]} 10.
Nxc6 {[%clk 01:14:20]} {[%emt 00:10:03]} Bxc6 {[%clk 01:05:28]} {[%emt
00:19:16]} 11. Bf4 {[%clk 01:08:03]} {[%emt 00:06:46]} Rc8 {[%clk 00:57:12]}
{[%emt 00:08:46]} 12. Qe3 {[%clk 00:42:35]} {[%emt 00:25:58]} Qc7 {[%clk
00:51:35]} {[%emt 00:06:08]} 13. e5 {[%clk 00:28:25]} {[%emt 00:14:41]} Nd5
{[%clk 00:51:23]} {[%emt 00:00:42]} 14. Nxd5 {[%clk 00:27:51]} {[%emt
00:01:04]} Bxd5 {[%clk 00:51:39]} {[%emt 00:00:14]} 15. c4 {[%clk 00:27:20]}
{[%emt 00:01:01]} dxe5 {[%clk 00:31:52]} {[%emt 00:20:17]} 16. Bxe5 {[%clk
00:23:24]} {[%emt 00:04:25]} Qc6 {[%clk 00:31:13]} {[%emt 00:01:09]} 17. Rxd5
{[%clk 00:23:19]} {[%emt 00:00:35]} Qxd5 {[%clk 00:31:23]} {[%emt 00:00:20]} 18.
Kb1 {[%clk 00:15:43]} {[%emt 00:08:06]} Qc5 {[%clk 00:25:12]} {[%emt 00:06:41]}
19. Bd4 {[%clk 00:09:23]} {[%emt 00:06:50]} Qc6 {[%clk 00:15:06]} {[%emt
00:10:35]} 20. Bf3 {[%clk 00:05:07]} {[%emt 00:04:47]} Qxc4 {[%clk 00:15:09]}
{[%emt 00:00:28]} 21. Bxb7 {[%clk 00:04:48]} {[%emt 00:00:48]} Rd8 {[%clk
00:15:09]} {[%emt 00:00:30]} 22. Bc3 {[%clk 00:02:23]} {[%emt 00:02:55]} Bc5
{[%clk 00:13:18]} {[%emt 00:02:21]} 23. Bxa6 {[%clk 00:01:07]} {[%emt
00:01:46]} Qa4 {[%clk 00:06:48]} {[%emt 00:07:01]} 24. Be2 {[%clk 00:00:42]}
{[%emt 00:00:54]} Bxe3 {[%clk 00:07:15]} {[%emt 00:00:03]} 0-1

[Event "XXII Obert Internacional d'Escacs Sant Marti 2022"]
[Site "Barcelona, Spain"]
[Date "2022.07.19"]
[Round "7.7"]
[White "Player, Edmund C"]
[Black "Narciso Dublan, Marc"]
[Result "0-1"]
[TimeControl "1.30 fb 30"]
[WhiteElo "2202"]
[BlackElo "2461"]

1. e4 {[%clk 01:30:57]} {[%emt 00:00:02]} d5 {[%clk 01:30:34]} {[%emt
00:00:26]} 2. exd5 {[%clk 01:31:10]} {[%emt 00:00:18]} Qxd5 {[%clk 01:30:52]}
{[%emt 00:00:12]} 3. Nc3 {[%clk 01:31:37]} {[%emt 00:00:03]} Qa5 {[%clk
01:31:10]} {[%emt 00:00:12]} 4. d4 {[%clk 01:31:55]} {[%emt 00:00:12]} Nf6
{[%clk 01:31:23]} {[%emt 00:00:16]} 5. Bd2 {[%clk 01:32:12]} {[%emt 00:00:14]}
Bg4 {[%clk 01:28:48]} {[%emt 00:03:05]} 6. f3 {[%clk 01:31:04]} {[%emt
00:01:37]} Bd7 {[%clk 01:28:33]} {[%emt 00:00:44]} 7. Bc4 {[%clk 01:27:00]}
{[%emt 00:04:35]} Qb6 {[%clk 01:28:38]} {[%emt 00:00:25]} 8. Nge2 {[%clk
01:26:16]} {[%emt 00:01:14]} e6 {[%clk 01:22:26]} {[%emt 00:06:42]} 9. O-O
{[%clk 01:19:19]} {[%emt 00:07:28]} Be7 {[%clk 01:18:51]} {[%emt 00:04:04]} 10.
Be3 {[%clk 01:09:35]} {[%emt 00:10:15]} O-O {[%clk 01:12:40]} {[%emt 00:06:41]}
11. Qd2 {[%clk 01:08:19]} {[%emt 00:01:46]} Nc6 {[%clk 00:54:21]} {[%emt
00:18:50]} 12. a3 {[%clk 00:55:01]} {[%emt 00:13:48]} Na5 {[%clk 00:54:13]}
{[%emt 00:00:37]} 13. Bd3 {[%clk 00:45:14]} {[%emt 00:10:17]} c5 {[%clk
00:54:24]} {[%emt 00:00:18]} 14. Kh1 {[%clk 00:31:19]} {[%emt 00:14:27]} cxd4
{[%clk 00:49:00]} {[%emt 00:05:53]} 15. Nxd4 {[%clk 00:30:51]} {[%emt
00:00:58]} Qd8 {[%clk 00:44:34]} {[%emt 00:04:56]} 16. Rad1 {[%clk 00:30:17]}
{[%emt 00:01:04]} Rc8 {[%clk 00:42:15]} {[%emt 00:02:49]} 17. Qe2 {[%clk
00:29:55]} {[%emt 00:00:53]} a6 {[%clk 00:41:43]} {[%emt 00:01:01]} 18. Na2
{[%clk 00:22:59]} {[%emt 00:07:27]} Qc7 {[%clk 00:33:53]} {[%emt 00:08:18]} 19.
Bg5 {[%clk 00:07:58]} {[%emt 00:15:32]} Rfe8 {[%clk 00:30:13]} {[%emt
00:04:10]} 20. Bh4 {[%clk 00:07:38]} {[%emt 00:00:49]} Nc4 {[%clk 00:22:06]}
{[%emt 00:08:38]} 21. Bg3 {[%clk 00:07:28]} {[%emt 00:00:40]} Bd6 {[%clk
00:22:21]} {[%emt 00:00:15]} 22. Bxd6 {[%clk 00:06:21]} {[%emt 00:01:37]} Nxd6
{[%clk 00:22:47]} {[%emt 00:00:03]} 23. Qe5 {[%clk 00:05:06]} {[%emt 00:01:46]}
Nc4 {[%clk 00:18:55]} {[%emt 00:04:22]} 24. Qxc7 {[%clk 00:04:56]} {[%emt
00:00:41]} Rxc7 {[%clk 00:19:19]} {[%emt 00:00:05]} 25. Bxc4 {[%clk 00:04:22]}
{[%emt 00:01:03]} Rxc4 {[%clk 00:19:46]} {[%emt 00:00:04]} 26. Nc3 {[%clk
00:04:26]} {[%emt 00:00:26]} Rec8 {[%clk 00:16:36]} {[%emt 00:03:40]} 27. Rd2
{[%clk 00:04:30]} {[%emt 00:00:26]} Be8 {[%clk 00:13:18]} {[%emt 00:03:48]} 28.
Nde2 {[%clk 00:04:45]} {[%emt 00:00:15]} b5 {[%clk 00:12:29]} {[%emt 00:01:19]}
29. Rfd1 {[%clk 00:04:49]} {[%emt 00:00:26]} a5 {[%clk 00:12:07]} {[%emt
00:00:52]} 30. Kg1 {[%clk 00:03:10]} {[%emt 00:02:09]} Kf8 {[%clk 00:09:28]}
{[%emt 00:03:09]} 31. Kf2 {[%clk 00:03:26]} {[%emt 00:00:13]} Ke7 {[%clk
00:09:21]} {[%emt 00:00:37]} 32. Nd4 {[%clk 00:03:23]} {[%emt 00:00:34]} b4
{[%clk 00:09:23]} {[%emt 00:00:28]} 33. axb4 {[%clk 00:02:26]} {[%emt
00:01:27]} Rxb4 {[%clk 00:09:40]} {[%emt 00:00:13]} 34. Nb3 {[%clk 00:02:49]}
{[%emt 00:00:08]} a4 {[%clk 00:09:43]} {[%emt 00:00:27]} 35. Rd4 {[%clk
00:03:17]} Rxd4 {[%clk 00:06:30]} {[%emt 00:03:43]} 36. Nxd4 {[%clk 00:03:31]}
{[%emt 00:00:16]} a3 {[%clk 00:06:49]} {[%emt 00:00:11]} 37. Nde2 {[%clk
00:03:33]} {[%emt 00:00:27]} axb2 {[%clk 00:06:59]} {[%emt 00:00:20]} 38. Rb1
{[%clk 00:04:00]} {[%emt 00:00:03]} Rb8 {[%clk 00:04:53]} {[%emt 00:02:36]} 39.
Nd1 {[%clk 00:02:44]} {[%emt 00:01:47]} Ba4 {[%clk 00:05:12]} {[%emt 00:00:10]}
40. Rxb2 {[%clk 00:01:44]} {[%emt 00:01:30]} Rxb2 {[%clk 00:05:34]} {[%emt
00:00:08]} 41. Nxb2 {[%clk 00:02:13]} {[%emt 00:00:01]} Bxc2 {[%clk 00:05:57]}
{[%emt 00:00:06]} 42. Nd4 {[%clk 00:02:07]} {[%emt 00:00:36]} Bb1 {[%clk
00:06:19]} {[%emt 00:00:08]} 43. Nc4 {[%clk 00:02:24]} {[%emt 00:00:13]} Nd5
{[%clk 00:06:18]} {[%emt 00:00:31]} 44. Nc6+ {[%clk 00:02:33]} {[%emt
00:00:21]} Kf8 {[%clk 00:05:07]} {[%emt 00:01:41]} 45. Nd2 {[%clk 00:02:43]}
{[%emt 00:00:21]} Bd3 {[%clk 00:05:14]} {[%emt 00:00:22]} 46. Ne5 {[%clk
00:03:04]} {[%emt 00:00:10]} Bb5 {[%clk 00:05:17]} {[%emt 00:00:27]} 47. Nb3
{[%clk 00:03:13]} {[%emt 00:00:21]} f6 {[%clk 00:04:26]} {[%emt 00:01:21]} 48.
Nd4 {[%clk 00:02:55]} {[%emt 00:00:48]} Be8 {[%clk 00:04:52]} {[%emt 00:00:04]}
49. Nc4 {[%clk 00:01:56]} {[%emt 00:01:29]} Ke7 {[%clk 00:04:33]} {[%emt
00:00:49]} 50. Nd2 {[%clk 00:02:04]} {[%emt 00:00:22]} g5 {[%clk 00:04:22]}
{[%emt 00:00:40]} 51. Ne4 {[%clk 00:02:08]} {[%emt 00:00:26]} Bg6 {[%clk
00:04:41]} {[%emt 00:00:10]} 52. Nc5 {[%clk 00:01:28]} {[%emt 00:01:11]} e5
{[%clk 00:05:02]} {[%emt 00:00:09]} 53. Ne2 {[%clk 00:01:21]} {[%emt 00:00:37]}
f5 {[%clk 00:01:48]} {[%emt 00:03:43]} 54. Ng3 {[%clk 00:00:39]} {[%emt
00:01:13]} Nc3 {[%clk 00:01:01]} {[%emt 00:01:17]} 55. Nb3 {[%clk 00:00:35]}
{[%emt 00:00:34]} Kd6 {[%clk 00:01:04]} {[%emt 00:00:27]} 56. Nf1 {[%clk
00:00:52]} {[%emt 00:00:13]} f4 {[%clk 00:00:48]} {[%emt 00:00:47]} 57. Nc1
{[%clk 00:00:48]} {[%emt 00:00:33]} Kd5 {[%clk 00:01:04]} {[%emt 00:00:14]} 58.
Ke1 {[%clk 00:00:37]} {[%emt 00:00:41]} h5 {[%clk 00:01:11]} {[%emt 00:00:23]}
59. Ne2 {[%clk 00:00:44]} {[%emt 00:00:23]} Na4 {[%clk 00:01:01]} {[%emt
00:00:40]} 60. Nd2 {[%clk 00:00:47]} {[%emt 00:00:27]} Bd3 {[%clk 00:01:16]}
{[%emt 00:00:14]} 61. Kf2 {[%clk 00:00:49]} {[%emt 00:00:28]} Nc5 {[%clk
00:01:20]} {[%emt 00:00:26]} 62. Nc1 {[%clk 00:00:44]} {[%emt 00:00:35]} Ba6
{[%clk 00:01:22]} {[%emt 00:00:28]} 63. Ne2 {[%clk 00:00:52]} {[%emt 00:00:22]}
Ke6 {[%clk 00:01:05]} {[%emt 00:00:47]} 64. Nc3 {[%clk 00:01:13]} {[%emt
00:00:09]} Bb7 {[%clk 00:00:57]} {[%emt 00:00:38]} 65. Ke2 {[%clk 00:01:02]}
{[%emt 00:00:41]} Kf5 {[%clk 00:01:12]} {[%emt 00:00:15]} 66. Kf2 {[%clk
00:01:07]} {[%emt 00:00:25]} g4 {[%clk 00:01:15]} {[%emt 00:00:26]} 67. Kg1
{[%clk 00:00:38]} {[%emt 00:00:59]} Bc6 {[%clk 00:00:44]} {[%emt 00:01:02]} 68.
Kf2 {[%clk 00:00:58]} {[%emt 00:00:10]} h4 {[%clk 00:00:44]} {[%emt 00:00:31]}
69. h3 {[%clk 00:00:36]} {[%emt 00:00:51]} g3+ {[%clk 00:00:38]} {[%emt
00:00:35]} 0-1